bitfinex-derivatives/quotes_ETHF0:USTF0_20250309
["timestamp","ask_amount","ask_price","bid_price","bid_amount"]
[1741555370600,0.98782,2024.9,2024.7,0.98785]
[1741555370800,0.98782,2024.9,2024.8,0.98783]
[1741555370997,0.98783,2024.8,2024.7,0.98787]
[1741555371301,0.98783,2024.8,2024.6,0.00741455]
[1741555371503,3.2078,2025.0,2024.6,0.00741455]
[1741555371700,0.98779,2024.9,2024.7,0.98787]
[1741555371901,0.98778,2024.9,2024.7,0.98787]
[1741555372100,3.2078,2025.0,2024.7,0.98787]
[1741555372309,0.98783,2024.8,2024.7,0.98787]
[1741555372606,0.98778,2024.9,2024.8,0.9878]
[1741555373205,0.98778,2024.9,2024.6,0.00741455]
[1741555373403,0.98778,2024.9,2024.8,0.98783]
[1741555373606,3.2078,2025.0,2024.6,0.00741455]
[1741555373807,4.19557,2025.0,2024.8,0.9878]
[1741555374107,0.98779,2024.9,2024.8,0.98779]
[1741555374707,0.98779,2024.9,2024.6,0.00741455]
[1741555374708,3.2078,2025.0,2024.6,0.00741455]
[1741555374908,4.19557,2025.0,2024.9,0.98778]
[1741555375208,0.98781,2024.9,2024.8,0.9878]
[1741555376402,4.19554,2025.0,2024.6,0.00741455]
[1741555376611,0.98779,2024.9,2024.8,0.98783]
[1741555377005,0.98781,2024.9,2024.7,0.98783]
[1741555377206,3.2078,2025.0,2024.6,0.00741455]
[1741555377910,0.9878,2024.9,2024.8,0.98781]
[1741555378414,2.47005,2024.5,2023.5,3.2078]
[1741555378711,3.2078,2024.2,2023.5,3.2078]
[1741555379119,0.98833,2023.8,2023.5,3.2078]
[1741555379506,4.19613,2023.8,2023.5,3.2078]
[1741555379701,3.2078,2023.8,2023.5,3.2078]
[1741555379906,0.98846,2023.5,2023.4,0.00741455]
[1741555380108,0.98846,2023.6,2023.4,0.00741455]
[1741555380412,4.19626,2023.5,2023.4,0.00741455]
[1741555380914,8.19626,2023.5,2023.4,0.00741455]
[1741555382110,4.19626,2023.5,2023.4,0.00741455]
[1741555383810,8.19626,2023.5,2023.4,0.00741455]
[1741555384116,0.98869,2023.1,2022.8,1.2936]
[1741555384512,0.98871,2023.0,2022.8,1.2936]
[1741555384811,0.98874,2023.0,2022.8,1.2936]
[1741555385318,3.2078,2023.2,2022.8,0.98879]
[1741555385614,3.2078,2023.2,2022.9,0.6744]
[1741555385815,0.98867,2023.1,2022.9,0.6744]
[1741555386219,3.2078,2023.5,2022.9,0.6744]
[1741555386520,0.98857,2023.3,2022.9,0.6744]
[1741555386710,0.98861,2023.2,2022.9,0.6744]
[1741555386913,3.2078,2023.5,2022.9,0.6744]
[1741555387113,3.2078,2023.5,2023.0,3.2078]
[1741555387313,3.21521455,2023.9,2023.0,3.2078]
[1741555387613,0.98836,2023.8,2023.2,0.98858]
[1741555387808,3.21521455,2023.9,2023.3,3.8756]
[1741555388010,0.00741455,2023.9,2023.3,4.5003]
[1741555388212,0.00741455,2023.9,2023.4,3.93746]
[1741555388410,0.00741455,2023.9,2023.5,0.6744]
[1741555388612,0.00741455,2023.9,2023.5,1.66285]
[1741555388920,0.99571455,2023.9,2023.5,1.66286]
[1741555389314,0.99571455,2023.9,2023.5,0.6744]
[1741555389512,0.00741455,2023.9,2023.5,1.66285]
[1741555389712,3.2078,2024.2,2023.6,5.6458]
[1741555390714,0.98826,2024.0,2023.7,0.00741455]
[1741555390915,0.00741455,2024.1,2023.7,0.00741455]
[1741555391611,0.98824,2024.0,2023.7,0.00741455]
[1741555391813,0.00741455,2024.1,2023.7,0.00741455]
[1741555392016,0.98822,2024.0,2023.7,0.00741455]
[1741555392216,0.00741455,2024.1,2023.7,0.00741455]
[1741555392422,0.99560455,2024.1,2023.9,3.2078]
[1741555392623,0.99560455,2024.1,2024.0,0.6483]
[1741555392818,0.00741455,2024.1,2024.0,0.6483]
[1741555393021,0.99558455,2024.1,2024.0,0.6483]
[1741555393226,0.99558455,2024.1,2024.0,3.0803]
[1741555395221,3.2078,2024.5,2024.0,3.0803]
[1741555395428,0.98812,2024.2,2024.1,1.3248]
[1741555396130,4.19592,2024.2,2024.1,1.3248]
[1741555396825,0.98812,2024.2,2024.1,1.3248]
[1741555397025,4.19592,2024.2,2024.1,1.3248]
[1741555397225,0.98812,2024.2,2024.1,1.3248]
[1741555399134,4.19592,2024.2,2024.1,0.6774]
[1741555399334,3.2078,2024.2,2023.7,3.07231455]
[1741555399530,0.98831,2023.8,2023.7,3.70301455]
[1741555400625,0.98831,2023.8,2023.6,2.949]
[1741555400827,0.98831,2023.8,2022.0,1.65663434]
[1741555400828,3.2078,2023.5,2022.0,1.65663434]
[1741555401130,0.98919,2022.0,2021.9,12.05964877]
[1741555401325,0.98919,2022.0,2021.9,12.00401262]
[1741555401626,3.2078,2022.1,2020.9,22.63310984]
[1741555401827,3.2078,2021.6,2020.9,22.63310984]
[1741555402024,3.2078,2021.3,2020.9,24.61163984]
[1741555402431,0.98968,2021.0,2020.9,21.18839984]
[1741555402633,0.98968,2021.0,2020.9,21.19581439]
[1741555402634,4.19748,2021.0,2020.9,21.19581439]
[1741555403026,10.85548,2021.0,2020.9,20.93269439]
[1741555403220,9.8658,2021.0,2020.8,11.52228471]
[1741555403527,9.8658,2021.0,2019.9,33.94966476]
[1741555403528,3.2078,2020.0,2019.9,13.00086476]
[1741555403732,5.8878,2020.0,2019.9,13.00086476]
[1741555403922,13.4508,2020.0,2019.9,7.92562476]
[1741555404127,13.4508,2020.0,2019.8,65.24833373]
[1741555404434,6.7708,2019.9,2019.8,20.5769739]
[1741555404626,6.7708,2019.9,2019.8,5.92739072]
[1741555404827,10.7708,2019.9,2019.8,5.83889072]
[1741555405123,10.7708,2019.9,2019.5,0.03799432]
[1741555405124,9.7558,2019.9,2019.7,75.24275269]
[1741555405329,3.563,2019.8,2019.7,75.24275269]
[1741555405724,3.563,2019.9,2019.7,75.24275269]
[1741555406030,3.563,2019.9,2019.7,90.10134859]
[1741555406233,3.563,2020.0,2019.7,75.24275269]
[1741555406424,3.2078,2019.9,2019.7,75.24275269]
[1741555406731,3.563,2019.8,2019.7,75.24275269]
[1741555407033,3.563,2019.8,2018.0,125.2936201]
[1741555407034,3.2078,2019.0,2018.0,125.2936201]
[1741555407227,3.2078,2018.1,2017.2,3.2078]
[1741555407535,2.807,2018.0,2017.6,0.9902]
[1741555407840,3.2078,2017.7,2017.5,0.9902]
[1741555408026,3.2078,2017.7,2017.2,3.2078]
[1741555408222,3.2078,2017.7,2017.4,0.9902]
[1741555408432,3.2078,2017.7,2016.5,3.2078]
[1741555408631,3.2078,2017.4,2016.8,0.69114]
[1741555408838,2.844,2017.3,2016.9,0.69114]
[1741555409035,2.844,2017.3,2016.6,19.8097959]
[1741555409230,3.2078,2016.8,2016.0,3.2078]
[1741555409433,2.871,2016.7,2016.5,0.69114]
[1741555409633,2.876,2017.0,2016.7,0.69114]
[1741555409832,0.00743439,2016.8,2016.7,0.69114]
[1741555410331,0.00743439,2016.8,2016.1,3.2078]
[1741555410533,3.2078,2017.8,2016.7,21.48643]
[1741555410834,3.2078,2017.8,2017.4,0.69114]
[1741555410835,6.0838,2017.8,2017.4,0.69114]
[1741555411034,6.0838,2017.8,2017.6,0.69114]
[1741555411226,6.0838,2017.8,2017.5,0.69114]
[1741555411530,6.0838,2017.8,2017.6,0.69114]
[1741555411726,6.0838,2017.8,2016.9,3.2078]
[1741555411727,2.876,2017.8,2017.5,0.69114]
[1741555411927,2.876,2017.8,2017.4,0.00743439]
[1741555412139,9.11953233,2017.6,2017.4,0.00743439]
[1741555412529,9.11953233,2017.6,2017.5,40.3044359]
[1741555412730,10.9434388,2018.1,2017.9,0.99117]
[1741555413040,4.83781079,2018.4,2018.3,19.8035]
[1741555413234,4.83781079,2018.4,2018.3,39.6132959]
[1741555414639,2.80581079,2018.4,2018.3,39.6132959]
[1741555414845,24.54339179,2018.6,2018.5,16.99768921]
[1741555415035,24.54339179,2018.6,2018.5,20.20548921]
[1741555416438,24.54339179,2018.6,2018.2,3.2078]
[1741555416645,24.54339179,2018.6,2018.4,16.99768921]
[1741555416841,24.54339179,2018.6,2017.7,2.949]
[1741555416842,24.54339179,2018.6,2018.1,3.2078]
[1741555417142,24.54339179,2018.6,2017.7,16.99768921]
[1741555417143,2.938,2018.5,2017.7,16.99768921]
[1741555417343,3.2078,2018.4,2017.7,16.99768921]
[1741555417540,3.2078,2018.4,2017.9,9.56586074]
[1741555417737,2.938,2018.5,2018.2,9.56586074]
[1741555417941,0.00743439,2018.6,2018.4,9.56586074]
[1741555418239,0.00743439,2018.6,2018.5,9.56586074]
[1741555418444,0.00743439,2018.6,2018.5,10.55677074]
[1741555418646,0.00743439,2018.6,2018.5,9.56586074]
[1741555419648,0.00743439,2018.6,2018.4,2.36478336]
[1741555419943,0.00743439,2018.6,2018.4,3.35574336]
[1741555420346,0.00743439,2018.6,2018.4,2.36478336]
[1741555420740,2.947,2018.5,2017.7,0.496]
[1741555420951,3.2078,2018.3,2017.4,0.00743439]
[1741555422041,0.00743439,2018.6,2018.2,3.2078]
[1741555422449,0.00743439,2018.6,2017.9,3.2078]
[1741555423047,0.00743439,2018.6,2018.2,3.2078]
[1741555423242,0.00743439,2018.6,2018.5,3.2078]
[1741555424150,0.00743439,2018.6,2018.2,4.19881]
[1741555424340,0.00743439,2018.6,2018.2,3.2078]
[1741555424547,3.2078,2018.3,2017.7,0.6447]
[1741555424746,3.2078,2018.3,2017.3,3.2078]
[1741555424941,3.21523439,2018.6,2017.6,3.2078]
[1741555425142,3.2078,2018.2,2017.7,0.9913]
[1741555425444,3.2078,2018.2,2017.7,0.99128]
[1741555425642,3.2078,2018.5,2017.6,3.2078]
[1741555425844,3.2078,2018.5,2017.8,0.99123]
[1741555426144,3.2078,2018.5,2017.7,0.99870439]
[1741555426347,3.2078,2018.5,2017.6,3.2078]
[1741555426536,3.2078,2018.5,2017.7,0.9913]
[1741555426741,4.19887,2018.2,2017.6,3.2078]
[1741555426943,4.19887,2018.2,2017.7,0.99127]
[1741555427138,3.2078,2018.2,2017.6,3.2078]
[1741555427348,3.2078,2018.2,2017.9,0.99119]
[1741555427546,0.00743439,2018.6,2018.3,0.991]
[1741555427547,3.2078,2018.5,2018.3,0.991]
[1741555427846,3.2078,2018.5,2017.7,2.47826]
[1741555427847,0.00743439,2018.6,2018.5,0.99091]
[1741555428441,3.2078,2019.4,2018.5,7.2078]
[1741555428640,3.2078,2019.4,2018.5,6.2388]
[1741555428842,3.2078,2019.4,2019.0,0.99064]
[1741555429049,4.19829,2019.4,2018.8,3.2078]
[1741555429243,3.2078,2019.4,2018.8,3.2078]
[1741555429552,0.00743439,2019.3,2018.9,0.00743439]
[1741555429754,0.00743439,2019.3,2019.2,0.99057]
[1741555430054,0.00743439,2019.3,2019.1,0.99057]
[1741555430351,0.00743439,2019.3,2019.2,0.99057]
[1741555431355,3.2078,2019.8,2019.5,0.99038]
[1741555431557,3.2078,2019.8,2019.4,0.99047]
[1741555431849,0.99033,2019.7,2019.1,3.2078]
[1741555432047,3.2078,2019.8,2019.1,3.2078]
[1741555432245,3.2078,2019.2,2017.5,0.496]
[1741555432455,3.2078,2018.5,2017.8,0.99122]
[1741555432754,3.2078,2018.2,2017.4,0.496]
[1741555432950,0.99128,2017.8,2017.3,0.99148]
[1741555433154,0.99131,2017.7,2017.2,0.99155]
[1741555433349,0.99135,2017.6,2017.3,0.00743439]
[1741555433544,0.00743439,2017.8,2017.3,0.00743439]
[1741555433751,3.2078,2017.6,2017.3,0.00743439]
[1741555434055,0.99145,2017.4,2017.3,0.00743439]
[1741555434255,3.2078,2017.6,2016.6,0.6242]
[1741555434451,3.2078,2017.0,2016.6,0.6242]
[1741555434850,3.2078,2017.0,2016.6,1.61602]
[1741555435249,3.2078,2016.7,2016.4,0.496]
[1741555435547,3.2078,2016.7,2016.2,3.2078]
[1741555435955,3.2078,2016.7,2016.0,4.0965]
[1741555436154,3.2078,2016.7,2016.4,0.9919]
[1741555436356,0.00743439,2016.8,2016.3,3.2078]
[1741555436555,0.00743439,2016.8,2016.7,0.99179]
[1741555436753,0.00743439,2016.8,2016.3,3.2078]
[1741555436754,0.00743439,2016.8,2016.6,0.99182]
[1741555436954,0.00743439,2016.8,2016.3,3.2078]
[1741555437352,0.00743439,2016.8,2016.7,0.99179]
[1741555437954,3.2078,2017.3,2017.0,0.99164]
[1741555438158,4.19932,2017.3,2017.0,6.167]
[1741555438458,0.9916,2017.1,2017.0,6.167]
[1741555438959,10.18,2017.1,2016.0,0.99213]
[1741555439159,3.2078,2016.5,2016.0,0.99213]
[1741555439355,3.2078,2016.5,2016.3,0.00743439]
[1741555439562,0.99194,2016.4,2015.5,6.3958]
[1741555439862,3.2078,2016.2,2015.5,8.87673]
[1741555440062,3.2078,2016.2,2016.1,0.99209]
[1741555440358,3.2078,2016.5,2015.5,6.3958]
[1741555440656,4.19972,2016.5,2016.0,0.99211]
[1741555440962,0.00743439,2016.2,2016.1,0.99206]
[1741555441159,0.00743439,2016.2,2015.5,6.3958]
[1741555441359,0.00743439,2016.2,2016.1,0.99209]
[1741555441956,3.2078,2016.9,2016.1,7.38489]
[1741555442152,3.2078,2017.2,2016.4,3.2078]
[1741555442351,3.2078,2017.6,2016.6,2.47961]
[1741555442559,3.2078,2017.6,2017.5,0.9914]
[1741555443065,3.2078,2017.6,2017.3,3.2078]
[1741555443066,3.2078,2017.6,2017.3,0.00743439]
[1741555443263,0.99149,2017.4,2017.3,0.00743439]
[1741555443862,3.2078,2017.6,2017.3,0.00743439]
[1741555444463,9.912,2018.9,2017.5,3.2078]
[1741555444668,3.2078,2019.9,2018.7,3.2078]
[1741555444866,13.1198,2019.9,2018.7,3.2078]
[1741555445164,10.90231,2019.8,2019.2,0.99052]
[1741555445357,10.90231,2019.8,2019.3,4.19829]
[1741555445557,9.91943439,2019.7,2019.3,3.21523439]
[1741555445763,9.91943439,2019.7,2019.6,0.99037]
[1741555445968,2.28073532,2019.7,2019.6,3.2078]
[1741555446162,12.19273532,2019.7,2019.6,3.2078]
[1741555446769,13.18305532,2019.7,2019.6,3.2078]
[1741555448073,9.912,2019.6,2018.9,3.2078]
[1741555448271,0.99054,2019.3,2018.9,3.2078]
[1741555448663,9.912,2019.2,2018.9,3.2078]
[1741555449068,9.912,2019.1,2018.9,3.2078]
[1741555450867,9.912,2019.1,2018.9,4.19851]
[1741555451063,9.912,2019.0,2018.8,0.00743439]
[1741555451371,10.90269,2019.0,2018.8,0.00743439]
[1741555451571,9.912,2018.9,2018.8,0.00743439]
[1741555452073,3.2078,2019.5,2018.8,4.00743439]
[1741555452375,9.912,2019.6,2019.3,0.9905]
[1741555452565,9.912,2019.6,2019.0,3.2078]
[1741555452766,9.912,2019.5,2019.0,3.2078]
[1741555453063,9.912,2019.5,2019.3,3.2078]
[1741555453267,0.00743439,2019.7,2019.3,3.2078]
[1741555453268,0.99777439,2019.7,2019.4,0.99045]
[1741555453466,10.9024,2019.6,2019.3,4.19828]
[1741555453672,9.912,2019.6,2019.5,0.99042]
[1741555455571,3.8818,2020.7,2019.6,1.48557]
[1741555455772,6.71253113,2020.6,2019.8,3.2078]
[1741555456277,0.98999,2020.4,2020.1,0.99009]
[1741555456576,2.27330093,2020.6,2019.5,3.2078]
[1741555456577,6.71253113,2020.5,2019.5,3.2078]
[1741555456877,0.99011,2020.2,2019.9,0.99022]
[1741555457376,6.71253113,2020.1,2019.9,0.99022]
[1741555457679,6.71253113,2020.2,2020.1,0.99009]
[1741555458173,6.71253113,2020.2,2020.1,0.99012]
[1741555458677,0.00743439,2020.5,2020.1,3.2078]
[1741555458881,6.71253113,2020.4,2020.3,0.99003]
[1741555459284,0.00743439,2020.5,2020.4,0.98998]
[1741555459482,0.00743439,2020.5,2020.4,4.19778]
[1741555459681,0.00743439,2020.5,2020.4,7.34278]
[1741555459884,0.00743439,2020.5,2020.4,11.34278]
[1741555460083,10.86487159,2021.1,2021.0,0.98968]
[1741555460279,9.77164159,2021.1,2021.0,0.98968]
[1741555460584,8.75634159,2021.1,2021.0,0.98968]
[1741555461077,8.75634159,2021.1,2020.9,7.34349]
[1741555461283,8.75634159,2021.1,2021.0,0.98968]
[1741555461788,15.46887272,2021.1,2020.9,7.34353]
[1741555462077,6.71253113,2021.0,2020.9,3.2078]
[1741555462275,8.98583206,2021.0,2020.8,0.00743439]
[1741555462580,6.71253113,2020.9,2020.8,0.00743439]
[1741555462989,8.98583206,2020.9,2020.8,0.00743439]
[1741555463577,8.98583206,2020.9,2020.8,0.99721439]
[1741555463984,6.71253113,2020.9,2020.8,0.99721439]
[1741555464182,6.71253113,2020.9,2020.8,4.20501439]
[1741555464482,0.00743439,2021.3,2021.2,0.98959]
[1741555464784,6.71996552,2021.3,2021.2,0.98959]
[1741555465174,6.71996552,2021.3,2021.1,3.2078]
[1741555465985,6.71996552,2021.3,2021.2,0.98959]
[1741555467181,0.00743439,2021.3,2021.2,0.98959]
[1741555467978,4.39e-06,2021.3,2021.2,4.98959]
[1741555468175,4.39e-06,2021.3,2021.2,7.93859]
[1741555469190,3.8289,2022.2,2021.2,6.949]
[1741555469389,6.71253113,2022.1,2022.0,0.98919]
[1741555469577,6.71253113,2022.1,2021.9,0.98921]
[1741555469892,6.71253113,2022.0,2021.9,0.98921]
[1741555470079,6.71253113,2022.0,2021.8,3.2078]
[1741555470276,6.71253113,2022.0,2021.7,0.00743439]
[1741555470277,6.71253113,2021.9,2021.7,0.00743439]
[1741555470683,6.71253113,2021.9,2021.8,0.98928]
[1741555471187,6.71253113,2021.9,2021.7,0.00743439]
[1741555471385,6.71253113,2021.9,2021.8,0.98929]
[1741555472089,6.71253113,2021.9,2021.8,4.19709]
[1741555474187,0.00743439,2022.2,2021.8,6.2568]
[1741555474377,6.71253113,2022.1,2022.0,0.98919]
[1741555475185,8.98583206,2022.1,2021.8,6.1568]
[1741555475387,0.98929,2021.8,2021.7,0.00743439]
[1741555475687,7.70182113,2021.8,2021.7,0.00743439]
[1741555475888,8.98583206,2021.8,2021.7,0.00743439]
[1741555476188,8.98583206,2021.8,2021.1,2.96921]
[1741555476189,11.32030093,2021.8,2020.1,3.293878]
[1741555476484,3.2078,2021.1,2020.1,3.2078]
[1741555476681,0.98974,2020.9,2020.4,0.98994]
[1741555476882,6.47074093,2021.1,2020.6,0.98986]
[1741555477081,0.9897,2021.0,2020.1,3.2078]
[1741555477282,0.98975,2020.9,2020.6,0.00743439]
[1741555477493,3.2078,2020.8,2020.6,0.00743439]
[1741555477790,3.21523439,2021.1,2020.7,0.98982]
[1741555478087,5.48853532,2021.1,2020.7,0.98982]
[1741555478487,5.48853532,2021.1,2020.7,0.98979]
[1741555478792,5.48853532,2021.1,2020.6,0.00743439]
[1741555479197,5.48853532,2021.1,2020.7,0.9898]
[1741555479592,6.47817532,2021.1,2020.7,0.9898]
[1741555480490,5.48853532,2021.1,2020.6,0.00743439]
[1741555480690,5.48853532,2021.1,2020.7,0.9898]
[1741555480891,6.47820532,2021.1,2020.6,0.99729439]
[1741555481086,3.27040532,2021.1,2020.6,0.99729439]
[1741555481492,6.47820532,2021.1,2020.6,0.99728439]
[1741555481790,6.47820532,2021.1,2020.7,0.98981]
[1741555481995,5.48853532,2021.1,2020.6,0.00743439]
[1741555482495,6.47818532,2021.1,2020.6,0.99727439]
[1741555482695,6.47818532,2021.1,2020.7,0.98983]
[1741555482897,6.47818532,2021.1,2020.6,0.00743439]
[1741555483096,5.48853532,2021.1,2020.8,0.98976]
[1741555483594,5.48853532,2021.1,2020.6,0.00743439]
[1741555483893,3.2078,2020.7,2019.4,2.949]
[1741555484094,3.2078,2020.1,2019.4,0.4952]
[1741555484394,4.49070093,2020.1,2019.4,0.4952]
[1741555484595,4.49070093,2020.1,2019.8,0.99023]
[1741555484897,4.49070093,2020.1,2019.9,0.9902]
[1741555485292,4.49070093,2020.1,2019.7,0.00743439]
[1741555485492,4.49070093,2020.1,2019.8,0.99027]
[1741555485892,4.49070093,2020.1,2019.7,0.00743439]
[1741555486092,4.49070093,2020.1,2019.8,0.99027]
[1741555486788,2.949,2020.0,2019.5,1.8684]
[1741555487101,3.2078,2019.6,2018.6,0.99083]
[1741555487286,3.2078,2018.9,2018.4,0.4952]
[1741555487488,0.99094,2018.5,2018.0,0.496]
[1741555487790,4.19885,2018.3,2017.6,0.99132]
[1741555487988,3.2078,2017.9,2017.4,0.496]
[1741555488188,3.2078,2017.6,2017.2,0.496]
[1741555488493,9.1418,2017.5,2015.9,0.496]
[1741555488790,3.2078,2016.2,2015.6,26.27171885]
[1741555489098,3.2078,2015.9,2015.6,24.05624885]
[1741555489289,3.2078,2015.9,2015.6,23.06391885]
[1741555489689,0.99229,2015.7,2015.6,10.73720728]
[1741555489896,0.99243,2015.4,2015.3,29.51577715]
[1741555490195,9.42,2015.4,2015.3,44.83444602]
[1741555490391,2.949,2015.6,2015.3,29.51577715]
[1741555490589,3.2078,2015.4,2015.3,44.33764602]
[1741555490793,3.2078,2015.4,2015.3,30.50825715]
[1741555490990,3.2078,2015.4,2015.3,45.33012602]
[1741555491191,3.2078,2015.4,2015.3,44.33764602]
[1741555491595,3.2078,2015.4,2015.3,45.33012602]
[1741555491787,3.21523439,2016.0,2015.3,52.33764602]
[1741555491989,3.2078,2015.7,2015.4,15.81429887]
[1741555492302,3.21523439,2016.0,2015.4,14.82186887]
[1741555492501,3.21523439,2016.0,2015.6,0.99231]
[1741555492688,3.21523439,2016.0,2015.5,14.82186887]
[1741555492895,3.21523439,2016.0,2015.6,14.82186887]
[1741555493096,7.38615689,2015.8,2015.4,15.81426887]
[1741555493393,7.38615689,2015.8,2015.4,14.82186887]
[1741555493695,9.28093062,2016.1,2015.9,0.99219]
[1741555493897,3.2078,2016.9,2015.9,3.475]
[1741555494198,3.81420872,2017.2,2016.7,0.99176]
[1741555494393,3.81420872,2017.2,2016.5,3.2078]
[1741555494698,3.81420872,2017.2,2016.6,14.82186887]
[1741555494901,0.00743439,2017.1,2016.7,14.82186887]
[1741555495102,0.00743439,2017.1,2016.8,0.99171]
[1741555495296,0.00743439,2017.1,2017.0,0.99165]
[1741555495695,0.00743439,2017.1,2017.0,15.81351887]
[1741555495996,3.2078,2017.5,2017.0,14.82186887]
[1741555496192,3.2078,2017.4,2017.1,14.82186887]
[1741555496594,3.2078,2017.7,2017.3,0.9915]
[1741555496794,3.2078,2018.0,2017.3,0.9915]
[1741555497100,3.2078,2018.0,2017.4,14.82186887]
[1741555497298,0.00743439,2017.9,2017.4,4.409588]
[1741555497502,0.00743439,2017.9,2017.5,5.400988]
[1741555497699,0.61384311,2017.9,2017.4,0.99143]
[1741555497901,0.61384311,2017.9,2017.3,4.409588]
[1741555498195,0.61384311,2017.9,2017.4,4.409588]
[1741555498504,0.61384311,2017.9,2017.5,4.409588]
[1741555498696,0.61384311,2017.9,2017.0,3.2078]
[1741555499003,3.2078,2017.6,2017.2,3.2078]
[1741555499198,3.2078,2017.6,2017.0,5.401218]
[1741555499401,3.81420872,2017.6,2017.2,3.2078]
[1741555499598,3.81420872,2017.6,2017.1,4.409588]
[1741555499799,0.99145,2017.5,2017.2,3.2078]
[1741555499994,0.99145,2017.5,2017.0,4.409588]
[1741555499995,0.99145,2017.5,2017.1,3.2078]
[1741555500205,0.60640872,2017.5,2017.1,4.409588]
[1741555500502,0.60640872,2017.5,2017.2,4.409588]
[1741555500706,0.60640872,2017.5,2017.0,3.2078]
[1741555500891,0.60640872,2017.5,2017.2,0.99152]
[1741555501093,0.60640872,2017.5,2017.1,4.409588]
[1741555501094,0.60640872,2017.5,2017.1,5.401148]
[1741555501298,0.60640872,2017.5,2017.2,5.401088]
[1741555501507,0.60640872,2017.5,2017.1,4.409588]
[1741555502003,0.60640872,2017.5,2017.2,4.409588]
[1741555502195,0.60640872,2017.5,2017.1,4.409588]
[1741555502798,0.00743439,2017.9,2017.8,0.99125]
[1741555502994,4.19884,2018.3,2017.5,3.2078]
[1741555503203,3.2078,2018.3,2017.9,3.2078]
[1741555503402,0.60640872,2018.3,2017.9,3.2078]
[1741555503707,0.60640872,2018.3,2018.0,4.40215361]
[1741555503899,3.2078,2018.9,2018.1,4.40215361]
[1741555504098,0.00743439,2018.4,2018.3,0.99101]
[1741555504301,3.2078,2019.3,2018.3,4.99101]
[1741555504500,3.2078,2019.3,2019.0,4.19844]
[1741555504699,3.2078,2019.3,2019.1,0.99061]
[1741555504910,3.2078,2019.8,2019.2,0.99057]
[1741555505112,0.60640872,2019.9,2019.7,0.99029]
[1741555505304,11.05904531,2020.1,2020.0,0.99017]
[1741555505508,11.05904531,2020.1,2019.9,0.99022]
[1741555505509,11.66545403,2020.1,2019.9,0.99022]
[1741555505808,11.66545403,2020.1,2019.8,0.99025]
[1741555506007,11.66545403,2020.1,2019.8,0.99023]
[1741555506204,11.66545403,2020.1,2019.6,3.21523439]
[1741555506401,11.66545403,2020.1,2019.7,4.40215361]
[1741555506600,0.60640872,2020.1,2019.7,4.40215361]
[1741555506902,0.60640872,2020.1,2019.6,4.40215361]
[1741555506903,3.2078,2019.9,2019.6,4.40215361]
[1741555507308,3.81420872,2019.9,2019.6,4.40215361]
[1741555507510,3.2078,2019.9,2018.8,3.2078]
[1741555507702,3.2078,2019.5,2018.9,5.39283361]
[1741555508007,3.2078,2019.5,2019.0,0.00743439]
[1741555508209,3.2078,2019.5,2019.0,4.409588]
[1741555508402,3.2078,2019.5,2019.1,4.40215361]
[1741555508804,3.2078,2019.5,2019.2,4.40215361]
[1741555509002,3.2078,2019.5,2019.1,4.40215361]
[1741555509408,3.2078,2019.5,2019.2,4.40215361]
[1741555509605,3.2078,2019.5,2019.1,4.40215361]
[1741555510006,3.2078,2019.5,2019.2,5.39271361]
[1741555510209,3.2078,2019.5,2019.2,0.99056]
[1741555510416,3.2078,2019.5,2019.3,4.40215361]
[1741555510604,3.2078,2019.5,2019.4,0.99047]
[1741555510810,3.2078,2019.8,2019.7,0.99032]
[1741555511212,3.2078,2020.1,2019.9,0.99019]
[1741555511608,3.2078,2020.1,2020.0,4.40215361]
[1741555511806,3.2078,2020.1,2019.4,4.40215361]
[1741555512108,0.00743439,2020.3,2019.4,9.82721361]
[1741555512310,0.00743439,2020.3,2019.6,3.2078]
[1741555512608,0.00743439,2020.3,2020.2,0.99008]
[1741555513112,0.00743439,2020.3,2019.9,2.88214184]
[1741555513310,0.00743439,2020.3,2020.2,0.99008]
[1741555514712,3.2078,2020.8,2020.0,0.00743439]
[1741555514912,3.2078,2020.8,2020.0,2.95643439]
[1741555515109,3.2078,2020.8,2020.0,0.00743439]
[1741555515309,0.99012,2020.1,2020.0,0.00743439]
[1741555515520,0.99017,2020.1,2019.2,3.2078]
[1741555515718,3.2078,2020.2,2019.6,0.99033]
[1741555516016,0.99017,2020.0,2019.6,0.99033]
[1741555516314,0.99028,2019.8,2019.4,0.99043]
[1741555516512,3.2078,2019.9,2019.2,7.016]
[1741555516823,0.99034,2019.7,2019.4,0.00743439]
[1741555517013,0.00743439,2019.8,2019.4,0.99789439]
[1741555517214,0.99036,2019.7,2019.4,0.00743439]
[1741555517419,3.2078,2019.6,2019.4,0.00743439]
[1741555517621,4.19818,2019.6,2019.4,0.00743439]
[1741555518113,0.00743439,2019.8,2019.4,0.00743439]
[1741555518318,0.99034,2019.7,2019.4,0.00743439]
[1741555518623,3.2078,2019.6,2019.4,0.00743439]
[1741555519014,0.99042,2019.5,2019.4,0.00743439]
[1741555519320,3.2078,2019.6,2019.4,0.00743439]
[1741555520314,4.19819,2019.6,2019.4,0.00743439]
[1741555521523,3.2078,2019.6,2019.4,0.00743439]
[1741555521822,0.99042,2019.5,2019.4,0.00743439]
[1741555522323,4.1982,2019.6,2019.4,0.00743439]
[1741555523023,3.2078,2019.6,2019.0,2.949]
[1741555523221,3.2078,2019.3,2018.6,6.652]
[1741555523431,0.99075,2018.9,2018.5,0.99091]
[1741555523820,3.2078,2018.9,2018.3,6.8184]
[1741555524019,0.99081,2018.7,2018.4,0.99093]
[1741555524219,0.99081,2018.7,2018.4,0.99836439]
[1741555524421,0.99821439,2018.8,2018.5,0.99088]
[1741555524723,0.99083,2018.7,2018.4,0.99837439]
[1741555525224,0.99083,2018.7,2018.5,0.99091]
[1741555525523,0.99091,2018.5,2018.4,0.00743439]
[1741555525727,0.99103,2018.3,2018.0,4.19894]
[1741555525924,4.19883,2018.3,2018.0,4.19894]
[1741555526122,3.2078,2018.3,2018.0,3.2078]
[1741555526321,0.00743439,2018.8,2018.0,7.7038]